fUST/lending_fUST_20241205
["ID","MTS","AMOUNT","RATE_DAILY","PERIOD"]
[344351660,1733363446878,-465.29226119,0.00024999,2]
[344351661,1733363446889,-500.0,0.00024999,2]
[344351662,1733363446898,-500.0,0.00024999,2]
[344351663,1733363446911,-635.02924507,0.00024999,2]
[344351664,1733363446920,-500.0,0.00024999,2]
[344351665,1733363446930,-500.0,0.00025246,2]
[344351666,1733363446940,-500.0,0.00025246,2]
[344351667,1733363446950,-500.0,0.00025246,2]
[344351668,1733363446964,-500.0,0.00025246,2]
[344351669,1733363446973,-500.0,0.00025246,2]
[344351670,1733363446983,-500.0,0.00025246,2]
[344351671,1733363446993,-500.0,0.00025246,2]
[344351672,1733363447002,-500.0,0.00025246,2]
[344351673,1733363447011,-233.63999303,0.00025246,2]
[344351674,1733363447020,-500.0,0.00025246,2]
[344351675,1733363447031,-575.69,0.00025246,2]
[344351676,1733363447041,-500.0,0.00025272,2]
[344351677,1733363447050,-500.0,0.00025272,2]
[344351678,1733363447060,-555.21,0.00025272,2]
[344351679,1733363447069,-500.0,0.00025272,2]
[344351680,1733363447078,-500.0,0.00025272,2]
[344351681,1733363447088,-413.88458878,0.00025272,2]
[344351682,1733363447098,-500.0,0.00025272,2]
[344351683,1733363447107,-500.0,0.00025272,2]
[344351684,1733363447118,-500.0,0.00025272,2]
[344351685,1733363447127,-500.0,0.00025272,2]
[344351686,1733363447137,-519.82666203,0.00025272,2]
[344351687,1733363447147,-500.0,0.00025273,2]
[344351688,1733363447159,-500.0,0.00025273,2]
[344351689,1733363447167,-500.0,0.00025273,2]
[344351690,1733363447177,-500.0,0.0002552,2]
[344351691,1733363447187,-152.54428244,0.0002552,2]
[344351692,1733363447197,-500.0,0.0002552,2]
[344351693,1733363447206,-538.69954319,0.0002552,2]
[344351694,1733363447216,-500.0,0.0002552,2]
[344351695,1733363447226,-500.0,0.0002552,2]
[344351696,1733363447235,-500.0,0.0002552,2]
[344351697,1733363447245,-500.0,0.0002552,2]
[344351698,1733363447255,-500.0,0.0002552,2]
[344351699,1733363447264,-575.69,0.0002552,2]
[344351700,1733363447274,-500.0,0.00025546,2]
[344351701,1733363447285,-500.0,0.00025546,2]
[344351702,1733363447295,-555.21,0.00025546,2]
[344351703,1733363447304,-500.0,0.00025546,2]
[344351704,1733363447314,-500.0,0.00025546,2]
[344351705,1733363447324,-500.0,0.00025546,2]
[344351706,1733363447333,-500.0,0.00025546,2]
[344351707,1733363447343,-543.87276904,0.00025546,2]
[344351708,1733363447353,-515.30875695,0.00025546,2]
[344351709,1733363447362,-500.0,0.00025547,2]
[344351710,1733363447372,-500.0,0.00025547,2]
[344351711,1733363447382,-500.0,0.00025547,2]
[344351712,1733363447392,-168.773,0.00025791,11]
[344351713,1733363447402,-500.0,0.00025793,2]
[344351714,1733363447414,-384.86249539,0.00025793,2]
[344351715,1733363447424,-500.0,0.00025793,2]
[344351716,1733363447434,-500.0,0.00025793,2]
[344351717,1733363447444,-500.0,0.00025793,2]
[344351718,1733363447455,-495.63333689,0.00025793,2]
[344351719,1733363447464,-575.69,0.00025793,2]
[344351720,1733363447474,-500.0,0.0002582,2]
[344351721,1733363447484,-500.0,0.0002582,2]
[344351722,1733363447494,-555.21,0.0002582,2]
[344351723,1733363447503,-500.0,0.0002582,2]
[344351724,1733363447514,-500.0,0.0002582,2]
[344351725,1733363447524,-500.0,0.0002582,2]
[344351726,1733363447533,-500.0,0.0002582,2]
[344351727,1733363447544,-500.0,0.00025821,2]
[344351728,1733363447553,-500.0,0.00025821,2]
[344351729,1733363447562,-643.97578749,0.00025821,2]
[344351730,1733363447572,-500.0,0.00026067,2]
[344351731,1733363447582,-624.24230679,0.00026067,2]
[344351732,1733363447592,-500.0,0.00026067,2]
[344351733,1733363447601,-230.22483016,0.00026067,2]
[344351734,1733363447610,-575.69,0.00026067,2]
[344351735,1733363447620,-500.0,0.00026094,2]
[344351736,1733363447629,-500.0,0.00026094,2]
[344351737,1733363447639,-555.21,0.00026094,2]
[344351738,1733363447649,-500.0,0.00026094,2]
[344351739,1733363447662,-500.0,0.00026094,2]
[344351740,1733363447672,-500.0,0.00026094,2]
[344351741,1733363447681,-500.0,0.00026094,2]
[344351742,1733363447691,-500.0,0.00026095,2]
[344351743,1733363447700,-500.0,0.00026095,2]
[344351744,1733363447710,-164.535963,0.00026274,2]
[344351745,1733363447719,-500.0,0.00026341,2]
[344351746,1733363447729,-500.0,0.00026341,2]
[344351747,1733363447738,-575.69,0.00026341,2]
[344351748,1733363447748,-524.60448124,0.00026368,2]
[344351749,1733363447757,-537.52600806,0.00026368,2]
[344351750,1733363447768,-555.21,0.00026368,2]
[344351751,1733363447777,-500.0,0.00026368,2]
[344351752,1733363447787,-542.57622734,0.00026368,2]
[344351753,1733363447796,-276.14403706,0.00026368,2]
[344351754,1733363447806,-500.0,0.00026368,2]
[344351755,1733363447815,-500.0,0.00026369,2]
[344351756,1733363447825,-547.45499298,0.00026369,2]
[344351757,1733363447835,-660.0,0.00026384,2]
[344351758,1733363447844,-420.0,0.00026474,2]
[344351759,1733363447856,-444.95,0.00026605,3]
[344351760,1733363447865,-500.0,0.00026615,2]
[344351761,1733363447874,-500.0,0.00026615,2]
[344351762,1733363447884,-575.69,0.00026615,2]
[344351763,1733363447894,-555.21,0.00026642,2]
[344351764,1733363447905,-500.0,0.00026642,2]
[344351765,1733363447914,-500.0,0.00026642,2]
[344351766,1733363447924,-549.96,0.00026643,2]
[344351767,1733363447934,-420.0,0.00026865,2]
[344351768,1733363447943,-500.0,0.00026889,2]
[344351769,1733363447954,-500.0,0.00026889,2]
[344351770,1733363447966,-575.69,0.00026889,2]
[344351771,1733363447975,-555.21,0.00026916,2]
[344351772,1733363447985,-500.0,0.00026916,2]
[344351773,1733363447995,-177.9675492,0.00026916,2]
[344351774,1733363448004,-500.0,0.00027163,2]
[344351775,1733363448013,-500.0,0.00027163,2]
[344351776,1733363448023,-575.69,0.00027163,2]
[344351777,1733363448033,-555.21,0.0002719,2]
[344351778,1733363448043,-156.59031983,0.0002719,2]
[344351779,1733363448053,-150.0,0.0002726,2]
[344351780,1733363448063,-532.0,0.0002726,2]
[344351781,1733363448073,-2170.0,0.0002726,2]
[344351782,1733363448083,-2375.0,0.0002726,2]
[344351783,1733363448092,-150.132,0.0002726,2]
[344351784,1733363448102,-500.0,0.00027437,2]
[344351785,1733363448112,-500.0,0.00027437,2]
[344351786,1733363448122,-575.69,0.00027437,2]
[344351787,1733363448132,-555.21,0.00027464,2]
[344351788,1733363448142,-155.00299882,0.00027499,2]
[344351789,1733363448155,-500.0,0.00027499,2]
[344351790,1733363448165,-2150.44,0.000275,2]
[344351791,1733363448175,-1995.641619,0.000275,2]
[344351792,1733363448185,-535.60931127,0.00027711,2]
[344351793,1733363448195,-242.31577528,0.00027711,2]
[344351794,1733363448204,-575.69,0.00027711,2]
[344351795,1733363448214,-555.21,0.00027738,2]
[344351796,1733363448224,-575.69,0.00027985,2]
[344351797,1733363448234,-555.21,0.00028012,2]
[344351798,1733363448245,-344.97652512,0.00028219,10]
[344351799,1733363448255,-575.69,0.00028259,2]
[344351800,1733363448264,-555.21,0.00028286,2]
[344351801,1733363448275,-575.69,0.00028533,2]
[344351802,1733363448284,-555.21,0.0002856,2]
[344351803,1733363448294,-587.0,0.00028697,2]
[344351804,1733363448304,-575.69,0.00028807,2]
[344351805,1733363448314,-555.21,0.00028834,2]
[344351806,1733363448324,-500.0,0.00028869,4]
[344351807,1733363448334,-155.00014994,0.00028874,2]
[344351808,1733363448344,-575.69,0.00029081,2]
[344351809,1733363448354,-555.21,0.00029108,2]
[344351810,1733363448364,-575.69,0.00029355,2]
[344351811,1733363448375,-555.21,0.00029382,2]
[344351812,1733363448385,-447.928,0.0002955,15]
[344351813,1733363448395,-587.0,0.00029552,2]
[344351814,1733363448409,-575.69,0.00029629,2]
[344351815,1733363448420,-555.21,0.00029656,2]
[344351816,1733363448430,-575.69,0.00029903,2]
[344351817,1733363448440,-555.21,0.0002993,2]
[344351818,1733363448450,-229.03118001,0.00029999,2]
[344351819,1733363448460,-118210.5227141,0.0003,120]
[344351820,1733363448470,-347.31,0.0003,31]
[344351821,1733363448481,-347.31,0.0003,31]
[344351822,1733363448491,-347.31,0.0003,31]
[344351823,1733363448502,-347.31,0.0003,31]
[344351824,1733363448512,-347.31,0.0003,31]
[344351825,1733363448522,-347.31,0.0003,31]
[344351826,1733363448533,-347.31,0.0003,31]
[344351827,1733363448543,-347.31,0.0003,31]
[344351828,1733363448553,-347.31,0.0003,31]
[344351829,1733363448563,-347.31,0.0003,31]
[344351830,1733363448574,-347.31,0.0003,31]
[344351831,1733363448585,-347.31,0.0003,31]
[344351832,1733363448595,-3200.0,0.0003,2]
[344351833,1733363448605,-298.092,0.0003,7]
[344351834,1733363448615,-177.0,0.0003,2]
[344351835,1733363448625,-575.69,0.00030177,2]
[344351836,1733363448635,-555.21,0.00030204,2]
[344351837,1733363448645,-500.0,0.00030239,6]
[344351838,1733363448659,-150.0,0.0003026,2]
[344351839,1733363448670,-532.0,0.0003026,2]
[344351840,1733363448680,-2170.0,0.0003026,2]
[344351841,1733363448690,-2375.0,0.0003026,2]
[344351842,1733363448701,-155.0000075,0.00030318,2]
[344351843,1733363448711,-154.402,0.0003038,120]
[344351844,1733363448721,-575.69,0.00030451,2]
[344351845,1733363448731,-555.21,0.00030478,2]
[344351846,1733363448741,-13221.34203693,0.00030512,30]
[344351847,1733363448751,-33333.0,0.00030673,2]
[344351848,1733363448761,-666.0,0.00030673,2]
[344351849,1733363448772,-575.92033641,0.00030725,2]
[344351850,1733363448781,-555.21,0.00030752,2]
[344351851,1733363448792,-502.18290435,0.00030773,5]
[344351852,1733363448802,-502.18360438,0.00030773,5]
[344351853,1733363448811,-516.5127982,0.00030773,5]
[344351854,1733363448822,-500.0,0.00030773,5]
[344351855,1733363448832,-500.0,0.00030773,5]
[344351856,1733363448842,-500.65786572,0.00030773,5]
[344351857,1733363448852,-153.680606,0.00030773,7]
[344351858,1733363448862,-151.353628,0.00030773,7]
[344351859,1733363448872,-157.435964,0.00030773,7]
[344351860,1733363448882,-156.089168,0.00030773,7]
[344351861,1733363448892,-24015.93550732,0.00030774,2]
[344351862,1733363448905,-181.08247346,0.00030774,2]
[344351863,1733363448915,-1169.27083333,0.00030774,7]
[344351864,1733363448925,-1169.27083333,0.00030774,7]
[344351865,1733363448935,-1169.27083333,0.00030774,7]
[344351866,1733363448945,-193988.34350026,0.00030774,10]
[344351867,1733363448964,-4493.16756,0.00030774,10]
[344351868,1733363448976,-1126.61157,0.00030774,10]
[344351870,1733363553688,164.535963,0.00013973,2]
[344351877,1733364210468,164.851854,0.00013973,2]
[344351885,1733364585105,855.0,0.00027,30]
[344352345,1733364646599,-534.48328025,0.00024424,2]
[344352347,1733364646608,-2019.41671975,0.0002509,2]
[344352349,1733364646621,-22880.58328025,0.0002509,2]
[344352351,1733364646631,-223.80379761,0.00026515,2]
[344352353,1733364646644,-300.0,0.00026574,2]
[344352355,1733364646655,-300.0,0.00026574,2]
[344352357,1733364646665,-199.06883235,0.00026575,2]
[344352359,1733364646675,-312.8740537,0.00026575,2]
[344352361,1733364646686,-500.0,0.00026575,2]
[344352363,1733364646700,-500.0,0.00026575,2]
[344352365,1733364646710,-500.0,0.00026849,2]
[344352367,1733364646721,-500.0,0.00026849,2]
[344352369,1733364646731,-194.572909,0.00027,2]
[344352371,1733364646741,-223.80379756,0.00027109,2]
[344352373,1733364646752,-416.26351845,0.00027123,2]
[344352375,1733364646762,-500.0,0.00027123,2]
[344352377,1733364646772,-150.0,0.0002726,2]
[344352379,1733364646783,-250.53,0.0002726,2]
[344352381,1733364646794,-150.0,0.00027261,2]
[344352383,1733364646804,-532.0,0.00027261,2]
[344352385,1733364646815,-2170.0,0.00027261,2]
[344352387,1733364646825,-2375.0,0.00027261,2]
[344352389,1733364646835,-500.0,0.00027397,2]
[344352391,1733364646845,-168.773,0.00027397,16]
[344352392,1733364646855,-500.0,0.00027397,2]
[344352394,1733364646865,-1935.39,0.000276,2]
[344352396,1733364646876,-500.0,0.00027671,2]
[344352398,1733364646886,-223.80379756,0.00027702,2]
[344352400,1733364646896,-500.0,0.00027945,2]
[344352402,1733364646905,-500.0,0.00028219,2]
[344352404,1733364646916,-223.80379756,0.00028296,2]
[344352406,1733364646925,-268.21,0.00028493,2]
[344352408,1733364646935,-420.0,0.00028742,2]
[344352410,1733364646950,-500.0,0.00028767,4]
[344352412,1733364646959,-223.80379756,0.00028889,2]
[344352414,1733364646969,-500.0,0.00028935,2]
[344352416,1733364646979,-500.0,0.00028935,2]
[344352418,1733364646989,-500.0,0.00028935,2]
[344352420,1733364646998,-500.0,0.00028935,2]
[344352422,1733364647008,-500.0,0.00028935,2]
[344352424,1733364647017,-456.40541194,0.00028935,2]
[344352426,1733364647027,-387.14827159,0.00028935,2]
[344352428,1733364647037,-500.0,0.00028935,2]
[344352430,1733364647046,-3200.0,0.00028936,2]
[344352432,1733364647056,-500.0,0.00029209,2]
[344352434,1733364647067,-500.0,0.00029209,2]
[344352436,1733364647076,-420.0,0.00029231,2]
[344352438,1733364647086,-164.851854,0.00029349,2]
[344352440,1733364647095,-498.8814,0.00029359,15]
[344352443,1733364647105,-223.80379756,0.00029483,2]
[344352445,1733364647114,-500.0,0.00029483,2]
[344352446,1733364647124,-481.89606379,0.00029483,2]
[344352449,1733364647139,-18.10393621,0.00029483,2]
[344352451,1733364647149,-165.80404261,0.00029757,2]
[344352453,1733364647159,-229.07633408,0.00029757,2]
[344353050,1733364822242,164.851854,0.00013973,2]
[344353059,1733365427923,165.212873,0.00013973,2]
[344353060,1733365597206,-221.78307097,0.0002533,2]
[344353122,1733365832933,-3182.42625655,0.00025,7]
[344353124,1733365832944,-204.15198352,0.00025,2]
[344353126,1733365832954,-52.08714803,0.0002533,2]
[344353128,1733365832968,-329.645701,0.00025531,2]
[344353130,1733365832979,-2.64344616,0.0002623,2]
[344353132,1733365832994,-279.28192544,0.0002623,2]
[344353134,1733365833003,-211.67430054,0.0002623,8]
[344353136,1733365833014,-500.0,0.00026328,2]
[344353138,1733365833025,-300.0,0.00026328,2]
[344353140,1733365833035,-300.0,0.00026328,2]
[344353142,1733365833045,-9239.97761387,0.00026328,2]
[344353144,1733365833059,-2695.40223486,0.00026328,2]
[344353417,1733365836417,-5565.40165322,0.00026328,2]
[344353545,1733365839015,-9279.21849805,0.00026328,2]
[344353548,1733365839025,-500.0,0.0002633,2]
[344353550,1733365839036,-602.03917831,0.0002633,2]
[344353552,1733365839045,-500.0,0.0002633,2]
[344353554,1733365839055,-500.0,0.0002633,2]
[344353556,1733365839064,-500.0,0.0002633,2]
[344353558,1733365839074,-500.0,0.0002633,2]
[344353560,1733365839083,-500.0,0.0002633,2]
[344353562,1733365839093,-500.0,0.0002633,2]
[344353564,1733365839103,-500.0,0.0002633,2]
[344353565,1733365839113,-500.0,0.0002633,2]
[344353567,1733365839123,-500.0,0.0002633,2]
[344353569,1733365839132,-500.0,0.0002633,2]
[344353570,1733365839142,-500.0,0.0002633,2]
[344353571,1733365839151,-500.0,0.0002633,2]
[344353572,1733365839163,-458.26392974,0.0002633,2]
[344353573,1733365839173,-500.0,0.0002633,2]
[344353574,1733365839183,-500.0,0.0002633,2]
[344353576,1733365839193,-500.0,0.0002633,2]
[344353577,1733365839202,-500.0,0.0002633,2]
[344353579,1733365839212,-500.0,0.0002633,2]
[344353581,1733365839221,-500.0,0.0002633,2]
[344353582,1733365839232,-500.0,0.0002633,2]
[344353583,1733365839241,-500.0,0.0002633,2]
[344353585,1733365839253,-500.0,0.0002633,2]
[344353587,1733365839264,-500.0,0.0002633,2]
[344353588,1733365839273,-500.0,0.0002633,2]
[344353589,1733365839282,-500.0,0.0002633,2]
[344353590,1733365839292,-500.0,0.0002633,2]
[344353591,1733365839302,-500.0,0.0002633,2]
[344353592,1733365839312,-13984.56840126,0.00026331,2]
[344353593,1733365839322,-21999.63585855,0.00026331,2]
[344353594,1733365839334,-991.30950836,0.00026331,2]
[344353595,1733365839346,-1909.05463309,0.00026331,2]
[344353596,1733365839356,-298.43227715,0.00026373,2]
[344353597,1733365839366,-232.41400803,0.00026602,2]
[344353598,1733365839377,-165.551,0.00026849,14]
[344353599,1733365839387,-281.92537153,0.00026864,2]
[344353600,1733365839397,-283.890024,0.00027241,2]
[344353601,1733365839406,-281.92537153,0.00027499,2]
[344353602,1733365839416,-139.88216016,0.00027598,2]
[344353603,1733365839429,-392.11783984,0.00027598,2]
[344353604,1733365839438,-2375.0,0.00027598,2]
[344353605,1733365839448,-1049.73496486,0.00027598,2]
[344353616,1733365840896,-1120.26503514,0.00027598,2]
[344353617,1733365840906,-1741.85,0.000276,2]
[344353618,1733365840917,-281.92537153,0.00028133,2]
[344353619,1733365840928,-420.0,0.00028483,2]
[344353620,1733365840938,-155.41342171,0.00028632,2]
[344353621,1733365840949,-150.396517,0.000287,2]
[344353622,1733365840960,-281.92537153,0.00028768,2]
[344353623,1733365840970,-4956.975,0.00028784,2]
[344353624,1733365840980,-500.0,0.00028929,2]
[344353625,1733365840991,-420.0,0.00028961,2]
[344353626,1733365841005,-750.12,0.0002899,3]
[344353627,1733365841015,-1617.01792703,0.00029,2]
[344353645,1733365844451,-9245.98207297,0.00029,2]
[344353647,1733365844461,-351.010761,0.00029,30]
[344353649,1733365844472,-151.0,0.0002919,7]
[344353651,1733365844482,-500.0,0.00029203,2]
[344353653,1733365844492,-350.59902183,0.00029346,2]
[344353655,1733365844503,-281.92537153,0.00029402,2]
[344353656,1733365844513,-500.0,0.00029477,2]
[344353658,1733365844523,-448.089724,0.00029485,15]
[344353660,1733365844533,-151.0,0.00029679,7]
[344353661,1733365844542,-150.0,0.000297,2]
[344353662,1733365844552,-500.0,0.00029751,2]
[344353663,1733365844561,-500.0,0.00029999,2]
[344353664,1733365844571,-305.65,0.0003,31]
[344353665,1733365844580,-305.65,0.0003,31]
[344353666,1733365844590,-305.65,0.0003,31]
[344353667,1733365844600,-305.65,0.0003,31]
[344353668,1733365844609,-305.65,0.0003,31]
[344353669,1733365844619,-305.65,0.0003,31]
[344353670,1733365844628,-305.65,0.0003,31]
[344353671,1733365844638,-305.65,0.0003,31]
[344353672,1733365844648,-305.65,0.0003,31]
[344353673,1733365844658,-305.65,0.0003,31]
[344353674,1733365844667,-305.65,0.0003,31]
[344353675,1733365844678,-305.65,0.0003,31]
[344353676,1733365844690,-218.83815303,0.0003,30]
[344353677,1733365844701,-237.0,0.0003,2]
[344353678,1733365844711,-500.0,0.00030025,2]
[344353679,1733365844721,-281.92537153,0.00030037,2]
[344353680,1733365844733,-155.02067109,0.00030064,2]
[344353681,1733365844742,-151.0,0.00030167,7]
[344353682,1733365844753,-150.0,0.0003026,2]
[344353683,1733365844763,-500.0,0.00030299,2]
[344353684,1733365844772,-500.0,0.00030573,2]
[344353685,1733365844783,-532.0,0.00030598,2]
[344353686,1733365844794,-2375.0,0.00030598,2]
[344353687,1733365844804,-2170.0,0.00030598,2]
[344353688,1733365844816,-151.0,0.00030656,7]
[344353689,1733365844828,-33333.0,0.0003067,2]
[344353690,1733365844839,-666.0,0.0003067,2]
[344353691,1733365844849,-281.92537153,0.00030671,2]
[344353692,1733365844860,-160.32182601,0.00030699,2]
[344353693,1733365844869,-20545.67216995,0.000307,2]
[344353703,1733365846880,-1145.567,0.00029485,15]
[344353704,1733365846890,-1537.89657658,0.00030671,2]
[344353705,1733365846901,-7212.32077582,0.000307,2]
[344353708,1733366055039,164.199703,0.00013973,2]
[344353710,1733366092278,191.744049,0.00027,30]
[344353712,1733366103138,207.22036609,0.000161,2]
[344353820,1733366345448,5308.29,0.0001761,2]
[344353829,1733366749799,164.066534,0.00013973,2]
[344353927,1733367033023,-152.4606359,0.0002,2]
[344353929,1733367033035,-242.4361337,0.00025215,2]
[344353930,1733367033046,-219.35766922,0.00026028,2]
[344353932,1733367033056,-300.0,0.00026114,2]
[344353934,1733367033066,-300.0,0.00026114,2]
[344353936,1733367033078,-3475.4213593,0.00026114,2]
[344353938,1733367033091,-6187.5786407,0.00026114,2]
[344353940,1733367033102,-500.0,0.00026116,2]
[344353942,1733367033113,-24900.0,0.00026117,2]
[344353944,1733367033123,-164.066534,0.00026274,2]
[344353946,1733367033133,-500.0,0.00026328,2]
[344353948,1733367033143,-500.0,0.00026328,2]
[344353950,1733367033152,-500.0,0.00026328,2]
[344353951,1733367033162,-500.0,0.00026328,2]
[344353953,1733367033175,-500.0,0.00026328,2]
[344353955,1733367033185,-511.33993984,0.00026328,2]
[344353957,1733367033196,-503.98158719,0.00026328,2]
[344353959,1733367033206,-500.0,0.00026328,2]
[344353961,1733367033217,-505.99892563,0.00026328,2]
[344353962,1733367033227,-515.19099496,0.00026328,2]
[344353964,1733367033237,-500.0,0.00026328,2]
[344353966,1733367033249,-500.0,0.00026328,2]
[344353968,1733367033259,-515.75234532,0.00026328,2]
[344353970,1733367033269,-504.34173159,0.00026328,2]
[344353972,1733367033279,-506.38394024,0.00026328,2]
[344353974,1733367033289,-512.70008707,0.00026328,2]
[344353976,1733367033299,-505.69570852,0.00026328,2]
[344353978,1733367033310,-388.58245335,0.00026328,2]
[344353979,1733367033320,-528.79133498,0.00026328,2]
[344353981,1733367033329,-500.0,0.00026328,2]
[344353983,1733367033340,-500.0,0.00026328,2]
[344353985,1733367033350,-510.56935931,0.00026328,2]
[344353986,1733367033360,-546.01342703,0.00026328,2]
[344353988,1733367033370,-500.0,0.0002639,2]
[344353990,1733367033382,-455.78213092,0.000266,2]
[344353992,1733367033392,-500.0,0.000266,2]
[344353994,1733367033402,-500.0,0.000266,2]
[344353995,1733367033412,-162.02932553,0.000266,2]
[344353997,1733367033428,-415.64671271,0.00026602,2]
[344353999,1733367033438,-524.3732619,0.00026602,2]
[344354001,1733367033449,-507.77024974,0.00026602,2]
[344354003,1733367033460,-500.0,0.00026602,2]
[344354005,1733367033471,-500.0,0.00026602,2]
[344354006,1733367033481,-510.36615208,0.00026602,2]
[344354008,1733367033491,-504.54238796,0.00026602,2]
[344354010,1733367033502,-500.0,0.00026602,2]
[344354012,1733367033512,-503.62933729,0.00026602,2]
[344354014,1733367033521,-502.36224609,0.00026602,2]
[344354016,1733367033531,-500.0,0.00026664,2]
[344354018,1733367033542,-281.1,0.00026876,2]
[344354019,1733367033551,-500.0,0.00026938,2]
[344354021,1733367033561,-500.0,0.00027212,2]
[344354023,1733367033572,-500.0,0.00027397,2]
[344354025,1733367033582,-500.0,0.00027486,2]
[344354027,1733367033592,-500.0,0.00027599,2]
[344354029,1733367033602,-524.70939092,0.00027599,2]
[344354031,1733367033612,-512.79145996,0.00027599,10]
[344354032,1733367033622,-200.0,0.00027599,2]
[344354034,1733367033634,-500.0,0.00027599,2]
[344354036,1733367033643,-500.0,0.00027599,2]
[344354038,1733367033653,-500.0,0.00027599,2]
[344354040,1733367033665,-500.0,0.00027599,2]
[344354042,1733367033678,-479.24335048,0.00027599,2]
[344354043,1733367033688,-500.0,0.00027599,2]
[344354045,1733367033698,-509.75656195,0.00027599,2]
[344354047,1733367033708,-507.35366665,0.00027599,2]
[344354049,1733367033718,-500.0,0.00027599,2]
[344354050,1733367033729,-504.37364944,0.00027599,2]
[344354052,1733367033740,-506.87639359,0.00027599,2]
[344354053,1733367033750,-505.67474053,0.00027599,2]
[344354054,1733367033761,-503.22503541,0.00027599,2]
[344354055,1733367033771,-500.0,0.00027599,2]
[344354057,1733367033782,-500.0,0.00027599,2]
[344354058,1733367033792,-500.0,0.00027599,2]
[344354060,1733367033802,-504.60531206,0.00027599,7]
[344354062,1733367033813,-500.0,0.00027599,2]
[344354064,1733367033824,-1567.67,0.000276,2]
[344354065,1733367033834,-162.43624799,0.00027618,2]
[344354067,1733367033844,-500.0,0.0002776,2]
[344354069,1733367033855,-165.551,0.00027825,17]
[344354070,1733367033865,-505.17319599,0.00027825,2]
[344354072,1733367033875,-500.0,0.00027825,2]
[344354074,1733367033885,-500.0,0.00027825,2]
[344354075,1733367033894,-500.0,0.00027825,2]
[344354077,1733367033905,-500.0,0.00027825,2]
[344354079,1733367033915,-500.0,0.00027825,2]
[344354081,1733367033927,-500.0,0.00027825,2]
[344354082,1733367033937,-500.0,0.00027825,2]
[344354084,1733367033948,-368.07719283,0.00027825,2]
[344354085,1733367033958,-500.0,0.00027825,2]
[344354086,1733367033968,-500.0,0.00027825,2]
[344354087,1733367033980,-500.0,0.00027825,2]
[344354088,1733367033990,-537.7616359,0.00027873,2]
[344354089,1733367034000,-200.0,0.00027873,2]
[344354090,1733367034011,-500.0,0.00027873,2]
[344354091,1733367034021,-500.0,0.00027873,2]
[344354092,1733367034033,-500.0,0.00027873,2]
[344354093,1733367034044,-500.0,0.00027873,2]
[344354094,1733367034054,-500.0,0.00027873,2]
[344354095,1733367034065,-505.09759221,0.00027873,2]
[344354096,1733367034075,-500.0,0.00027873,2]
[344354097,1733367034089,-500.0,0.00027873,2]
[344354098,1733367034100,-517.99030498,0.00027873,2]
[344354099,1733367034110,-181.247009,0.00027945,2]
[344354101,1733367034121,-150.0,0.00028028,2]
[344354103,1733367034131,-532.0,0.00028028,2]
[344354104,1733367034142,-2375.0,0.00028028,2]
[344354106,1733367034152,-2170.0,0.00028028,2]
[344354108,1733367034162,-500.0,0.00028034,2]
[344354110,1733367034175,-503.76687915,0.00028099,2]
[344354111,1733367034186,-387.54793041,0.00028099,2]